[Event "Titled Tuesday Blitz May 24 Late 2022"]
[White "Melikyan, Gnel"]
[Black "Toncheva, Nadya"]
[WhiteFideId "54109990"]
[BlackFideId "2924056"]
[WhiteElo "1772"]
[BlackElo "1888"]
[Result "0-1"]
[Round "05"]
[TimeControl "180+1"]
[Date "2022.05.25"]
[WhiteClock "0:00:04"]
[BlackClock "0:00:06"]

1. e4 {[%clk 0:03:00]}  d5 {[%clk 0:02:59]} 2. exd5 {[%clk 0:02:57]}  Qxd5 {[%clk 0:03:00]} 3. Qf3 {[%clk 0:02:56]}  Qa5 {[%clk 0:02:59]} 4. Bc4 {[%clk 0:02:55]}  Nf6 {[%clk 0:02:59]} 5. Nc3 {[%clk 0:02:54]}  c6 {[%clk 0:02:59]} 6. Nge2 {[%clk 0:02:54]}  Bg4 {[%clk 0:02:58]} 7. Qg3 {[%clk 0:02:52]}  e6 {[%clk 0:02:56]} 8. O-O {[%clk 0:02:52]}  Nbd7 {[%clk 0:02:39]} 9. d3 {[%clk 0:02:50]}  Be7 {[%clk 0:02:37]} 10. h3 {[%clk 0:02:49]}  Bh5 {[%clk 0:02:36]} 11. Re1 {[%clk 0:02:42]}  b5 {[%clk 0:02:18]} 12. Bb3 {[%clk 0:02:42]}  b4 {[%clk 0:02:16]} 13. Nd1 {[%clk 0:02:34]}  Bg6 {[%clk 0:01:59]} 14. Nf4 {[%clk 0:02:32]}  O-O {[%clk 0:01:46]} 15. Ne3 {[%clk 0:02:32]}  Nb6 {[%clk 0:01:40]} 16. Nc4 {[%clk 0:02:28]}  Nxc4 {[%clk 0:01:40]} 17. Bxc4 {[%clk 0:02:28]}  b3 {[%clk 0:01:36]} 18. c3 {[%clk 0:02:18]}  bxa2 {[%clk 0:01:28]} 19. Rxa2 {[%clk 0:02:18]}  Qb6 {[%clk 0:01:24]} 20. Be3 {[%clk 0:02:17]}  Qb7 {[%clk 0:01:17]} 21. Rea1 {[%clk 0:02:11]}  a5 {[%clk 0:01:12]} 22. Bd4 {[%clk 0:01:59]}  Nd5 {[%clk 0:01:03]} 23. Nxg6 {[%clk 0:01:48]}  hxg6 {[%clk 0:01:01]} 24. Be5 {[%clk 0:01:43]}  Rfd8 {[%clk 0:00:51]} 25. Qf3 {[%clk 0:01:35]}  Nb6 {[%clk 0:00:42]} 26. Bb3 {[%clk 0:01:31]}  Nd7 {[%clk 0:00:36]} 27. Ba4 {[%clk 0:00:47]}  Nxe5 {[%clk 0:00:36]} 28. Qe4 {[%clk 0:00:47]}  Qc7 {[%clk 0:00:23]} 29. d4 {[%clk 0:00:44]}  Nc4 {[%clk 0:00:20]} 30. b3 {[%clk 0:00:38]}  Nd6 {[%clk 0:00:15]} 31. Qf3 {[%clk 0:00:37]}  c5 {[%clk 0:00:14]} 32. Bc6 {[%clk 0:00:32]}  Ra7 {[%clk 0:00:12]} 33. dxc5 {[%clk 0:00:32]}  Nf5 {[%clk 0:00:11]} 34. b4 {[%clk 0:00:31]}  Ra6 {[%clk 0:00:09]} 35. Bb5 {[%clk 0:00:30]}  Ra7 {[%clk 0:00:07]} 36. Rxa5 {[%clk 0:00:30]}  Rxa5 {[%clk 0:00:07]} 37. Rxa5 {[%clk 0:00:31]}  Bxc5 {[%clk 0:00:08]} 38. Ra1 {[%clk 0:00:25]}  Bb6 {[%clk 0:00:07]} 39. Bd3 {[%clk 0:00:20]}  Qe5 {[%clk 0:00:06]} 40. Rc1 {[%clk 0:00:17]}  Qf6 {[%clk 0:00:03]} 41. c4 {[%clk 0:00:17]}  Qg5 {[%clk 0:00:04]} 42. Rd1 {[%clk 0:00:15]}  Nd4 {[%clk 0:00:03]} 43. Qg4 {[%clk 0:00:13]}  Qxg4 {[%clk 0:00:03]} 44. hxg4 {[%clk 0:00:14]}  Nc6 {[%clk 0:00:03]} 45. c5 {[%clk 0:00:14]}  Bc7 {[%clk 0:00:02]} 46. Kf1 {[%clk 0:00:14]}  Nxb4 {[%clk 0:00:02]} 47. Be2 {[%clk 0:00:13]}  Rxd1+ {[%clk 0:00:03]} 48. Bxd1 {[%clk 0:00:14]}  Nc6 {[%clk 0:00:02]} 49. f3 {[%clk 0:00:13]}  Ne7 {[%clk 0:00:03]} 50. Bb3 {[%clk 0:00:13]}  Kf8 {[%clk 0:00:04]} 51. Ke2 {[%clk 0:00:13]}  Ke8 {[%clk 0:00:05]} 52. Ba4+ {[%clk 0:00:14]}  Kd8 {[%clk 0:00:04]} 53. Kd3 {[%clk 0:00:15]}  Be5 {[%clk 0:00:04]} 54. Ke4 {[%clk 0:00:15]}  f6 {[%clk 0:00:05]} 55. Bb3 {[%clk 0:00:15]}  Kd7 {[%clk 0:00:05]} 56. Ba4+ {[%clk 0:00:15]}  Kc7 {[%clk 0:00:05]} 57. Bb3 {[%clk 0:00:15]}  Kc6 {[%clk 0:00:03]} 58. Bxe6 {[%clk 0:00:15]}  Kxc5 {[%clk 0:00:03]} 59. f4 {[%clk 0:00:15]}  Bc7 {[%clk 0:00:03]} 60. g3 {[%clk 0:00:15]}  Kd6 {[%clk 0:00:03]} 61. Bf7 {[%clk 0:00:16]}  Kd7 {[%clk 0:00:01]} 62. Bb3 {[%clk 0:00:15]}  f5+ {[%clk 0:00:02]} 63. Kf3 {[%clk 0:00:14]}  Ke8 {[%clk 0:00:02]} 64. Be6 {[%clk 0:00:14]}  Bd6 {[%clk 0:00:02]} 65. Bc4 {[%clk 0:00:14]}  Nc8 {[%clk 0:00:01]} 66. Be6 {[%clk 0:00:14]}  Nb6 {[%clk 0:00:01]} 67. gxf5 {[%clk 0:00:14]}  gxf5 {[%clk 0:00:02]} 68. Bxf5 {[%clk 0:00:14]}  Ke7 {[%clk 0:00:02]} 69. Be4 {[%clk 0:00:15]}  Kf6 {[%clk 0:00:03]} 70. Bd3 {[%clk 0:00:15]}  Nc8 {[%clk 0:00:04]} 71. Ke4 {[%clk 0:00:15]}  Ne7 {[%clk 0:00:04]} 72. g4 {[%clk 0:00:15]}  Bc7 {[%clk 0:00:05]} 73. g5+ {[%clk 0:00:16]}  Kf7 {[%clk 0:00:05]} 74. Bc4+ {[%clk 0:00:16]}  Kg6 {[%clk 0:00:05]} 75. Bd3 {[%clk 0:00:15]}  Kh5 {[%clk 0:00:06]} 76. Kf3 {[%clk 0:00:14]}  Nd5 {[%clk 0:00:05]} 77. Be4 {[%clk 0:00:14]}  Nxf4 {[%clk 0:00:05]} 78. Bf5 {[%clk 0:00:10]}  Kxg5 {[%clk 0:00:05]} 79. Bd7 {[%clk 0:00:10]}  Kf6 {[%clk 0:00:06]} 80. Bc8 {[%clk 0:00:10]}  Ne6 {[%clk 0:00:05]} 81. Kg4 {[%clk 0:00:10]}  g5 {[%clk 0:00:05]} 82. Bd7 {[%clk 0:00:10]}  Nf8 {[%clk 0:00:05]} 83. Bc8 {[%clk 0:00:10]}  Ng6 {[%clk 0:00:05]} 84. Kf3 {[%clk 0:00:09]}  Ne5+ {[%clk 0:00:04]} 85. Ke4 {[%clk 0:00:10]}  Nc6 {[%clk 0:00:04]} 86. Bd7 {[%clk 0:00:10]}  Ne5 {[%clk 0:00:04]} 87. Bc8 {[%clk 0:00:10]}  Bd8 {[%clk 0:00:04]} 88. Bh3 {[%clk 0:00:08]}  Ng6 {[%clk 0:00:04]} 89. Kf3 {[%clk 0:00:08]}  Ke5 {[%clk 0:00:04]} 90. Bd7 {[%clk 0:00:08]}  Kd4 {[%clk 0:00:03]} 91. Bc8 {[%clk 0:00:08]}  Ne7 {[%clk 0:00:02]} 92. Be6 {[%clk 0:00:08]}  Ke5 {[%clk 0:00:03]} 93. Bd7 {[%clk 0:00:09]}  Nf5 {[%clk 0:00:03]} 94. Kg4 {[%clk 0:00:08]}  Ne3+ {[%clk 0:00:02]} 95. Kf3 {[%clk 0:00:09]}  Nd5 {[%clk 0:00:02]} 96. Bc8 {[%clk 0:00:09]}  Kf6 {[%clk 0:00:01]} 97. Bd7 {[%clk 0:00:09]}  Ne7 {[%clk 0:00:01]} 98. Bc8 {[%clk 0:00:08]}  Ng6 {[%clk 0:00:02]} 99. Kg2 {[%clk 0:00:07]}  Ne5 {[%clk 0:00:03]} 100. Kg3 {[%clk 0:00:06]}  Kg6 {[%clk 0:00:03]} 101. Be6 {[%clk 0:00:06]}  Kh5 {[%clk 0:00:03]} 102. Bf5 {[%clk 0:00:06]}  g4 {[%clk 0:00:04]} 103. Be6 {[%clk 0:00:06]}  Kg5 {[%clk 0:00:04]} 104. Bc8 {[%clk 0:00:06]}  Bc7 {[%clk 0:00:04]} 105. Be6 {[%clk 0:00:05]}  Ng6+ {[%clk 0:00:04]} 106. Kf2 {[%clk 0:00:05]}  Bb6+ {[%clk 0:00:04]} 107. Kf1 {[%clk 0:00:05]}  g3 {[%clk 0:00:04]} 108. Bd5 {[%clk 0:00:04]}  Kf4 {[%clk 0:00:04]} 109. Kg2 {[%clk 0:00:04]}  Kg4 {[%clk 0:00:02]} 110. Be6+ {[%clk 0:00:04]}  Kh4 {[%clk 0:00:03]} 111. Bf5 {[%clk 0:00:03]}  Nf4+ {[%clk 0:00:03]} 112. Kf3 {[%clk 0:00:04]}  g2 {[%clk 0:00:03]} 113. Kxf4 {[%clk 0:00:04]}  g1=Q {[%clk 0:00:03]} 114. Be4 {[%clk 0:00:04]}  Qe3+ {[%clk 0:00:04]} 115. Kf5 {[%clk 0:00:04]}  Bd4 {[%clk 0:00:03]} 116. Bc6 {[%clk 0:00:04]}  Qe5+ {[%clk 0:00:04]} 117. Kg6 {[%clk 0:00:04]}  Qf6+ {[%clk 0:00:05]} 118. Kh7 {[%clk 0:00:04]}  Qg7# {[%clk 0:00:06]} 0-1


[Site "https://www.chess.com"]

[Event "Titled Tuesday Blitz May 24 Late 2022"]
[White "Melkumyan, Hrant"]
[Black "Matinian, Nikita"]
[WhiteFideId "13302485"]
[BlackFideId "24129100"]
[WhiteElo "2604"]
[BlackElo "2422"]
[Result "0-1"]
[Round "05"]
[TimeControl "180+1"]
[Date "2022.05.24"]
[WhiteClock "0:02:12"]
[BlackClock "0:01:39"]

1. c4 {[%clk 0:03:00]}  e5 {[%clk 0:02:59]} 2. g3 {[%clk 0:03:01]}  g6 {[%clk 0:02:58]} 3. Bg2 {[%clk 0:03:01]}  Bg7 {[%clk 0:02:59]} 4. Nc3 {[%clk 0:03:01]}  Nc6 {[%clk 0:02:57]} 5. e3 {[%clk 0:03:00]}  h5 {[%clk 0:02:56]} 6. h3 {[%clk 0:02:59]}  d6 {[%clk 0:02:54]} 7. Nge2 {[%clk 0:02:59]}  h4 {[%clk 0:02:54]} 8. g4 {[%clk 0:02:59]}  f5 {[%clk 0:02:55]} 9. gxf5 {[%clk 0:02:57]}  Bxf5 {[%clk 0:02:56]} 10. d3 {[%clk 0:02:57]}  Qd7 {[%clk 0:02:52]} 11. Nd5 {[%clk 0:02:55]}  Nf6 {[%clk 0:02:39]} 12. Nec3 {[%clk 0:02:54]}  O-O {[%clk 0:02:17]} 13. Bd2 {[%clk 0:02:50]}  Bxd3 {[%clk 0:02:13]} 14. b3 {[%clk 0:02:44]}  e4 {[%clk 0:02:05]} 15. Nxf6+ {[%clk 0:02:38]}  Bxf6 {[%clk 0:02:06]} 16. Nxe4 {[%clk 0:02:38]}  Bxa1 {[%clk 0:02:05]} 17. Qxa1 {[%clk 0:02:38]}  Qf5 {[%clk 0:01:49]} 18. Nf6+ {[%clk 0:02:11]}  Qxf6 {[%clk 0:01:40]} 19. Bd5+ {[%clk 0:02:12]}  Kh7 {[%clk 0:01:39]} 0-1


[Site "https://www.chess.com"]

[Event "Titled Tuesday Blitz May 24 Late 2022"]
[White "Mickiewicz, Piotr"]
[Black "Koniahli, Malek."]
[WhiteFideId "1114891"]
[BlackFideId "7603495"]
[WhiteElo "2223"]
[BlackElo "2097"]
[Result "1-0"]
[Round "05"]
[TimeControl "180+1"]
[Date "2022.05.24"]
[WhiteClock "0:01:16"]
[BlackClock "0:01:44"]

1. e4 {[%clk 0:03:00]}  c5 {[%clk 0:02:57]} 2. Nf3 {[%clk 0:03:00]}  Nc6 {[%clk 0:02:57]} 3. d4 {[%clk 0:03:00]}  cxd4 {[%clk 0:02:58]} 4. Nxd4 {[%clk 0:03:00]}  Nf6 {[%clk 0:02:59]} 5. Nc3 {[%clk 0:02:58]}  d6 {[%clk 0:02:59]} 6. Bg5 {[%clk 0:02:57]}  e6 {[%clk 0:02:59]} 7. Qd2 {[%clk 0:02:57]}  a6 {[%clk 0:02:59]} 8. O-O-O {[%clk 0:02:56]}  h6 {[%clk 0:03:00]} 9. Be3 {[%clk 0:02:53]}  Be7 {[%clk 0:02:59]} 10. f3 {[%clk 0:02:50]}  Nxd4 {[%clk 0:02:59]} 11. Bxd4 {[%clk 0:02:46]}  b5 {[%clk 0:03:00]} 12. a3 {[%clk 0:02:41]}  Bb7 {[%clk 0:02:59]} 13. Kb1 {[%clk 0:02:36]}  Rc8 {[%clk 0:02:59]} 14. g4 {[%clk 0:02:28]}  Qc7 {[%clk 0:02:57]} 15. h4 {[%clk 0:02:25]}  Bc6 {[%clk 0:02:19]} 16. Bh3 {[%clk 0:02:16]}  a5 {[%clk 0:02:03]} 17. g5 {[%clk 0:02:16]}  Nh5 {[%clk 0:02:03]} 18. g6 {[%clk 0:02:14]}  b4 {[%clk 0:01:57]} 19. gxf7+ {[%clk 0:02:11]}  Kxf7 {[%clk 0:01:57]} 20. axb4 {[%clk 0:02:08]}  axb4 {[%clk 0:01:58]} 21. Ne2 {[%clk 0:01:52]}  Qa5 {[%clk 0:01:58]} 22. Nf4 {[%clk 0:01:31]}  Nxf4 {[%clk 0:01:54]} 23. Qxf4+ {[%clk 0:01:30]}  Bf6 {[%clk 0:01:55]} 24. Bxf6 {[%clk 0:01:27]}  gxf6 {[%clk 0:01:55]} 25. Bxe6+ {[%clk 0:01:25]}  Ke8 {[%clk 0:01:44]} 26. Bxc8 {[%clk 0:01:16]} 1-0


[Site "https://www.chess.com"]

[Event "Titled Tuesday Blitz May 24 Late 2022"]
[White "Mikhalsky, Vladimir"]
[Black "Yaksin, Oleg"]
[WhiteFideId "14144352"]
[BlackFideId "24105880"]
[WhiteElo "2301"]
[BlackElo "2256"]
[Result "0-1"]
[Round "05"]
[TimeControl "180+1"]
[Date "2022.05.25"]
[WhiteClock "0:00:39"]
[BlackClock "0:00:08"]

1. d4 {[%clk 0:02:59]}  Nf6 {[%clk 0:02:56]} 2. c4 {[%clk 0:02:58]}  e6 {[%clk 0:02:55]} 3. Nf3 {[%clk 0:02:57]}  b6 {[%clk 0:02:55]} 4. g3 {[%clk 0:02:57]}  Bb7 {[%clk 0:02:55]} 5. Bg2 {[%clk 0:02:57]}  Be7 {[%clk 0:02:55]} 6. O-O {[%clk 0:02:57]}  O-O {[%clk 0:02:55]} 7. Nc3 {[%clk 0:02:53]}  Ne4 {[%clk 0:02:55]} 8. Qc2 {[%clk 0:02:51]}  Nxc3 {[%clk 0:02:55]} 9. Qxc3 {[%clk 0:02:43]}  Bf6 {[%clk 0:02:55]} 10. Re1 {[%clk 0:02:40]}  c5 {[%clk 0:02:55]} 11. e4 {[%clk 0:02:27]}  cxd4 {[%clk 0:02:24]} 12. Nxd4 {[%clk 0:02:26]}  d6 {[%clk 0:01:43]} 13. e5 {[%clk 0:02:17]}  dxe5 {[%clk 0:01:41]} 14. Bxb7 {[%clk 0:02:13]}  exd4 {[%clk 0:01:41]} 15. Qf3 {[%clk 0:02:10]}  Nd7 {[%clk 0:01:41]} 16. Bxa8 {[%clk 0:02:08]}  Qxa8 {[%clk 0:01:42]} 17. Qxa8 {[%clk 0:02:08]}  Rxa8 {[%clk 0:01:43]} 18. b3 {[%clk 0:02:05]}  Ne5 {[%clk 0:01:26]} 19. Rd1 {[%clk 0:02:01]}  Nc6 {[%clk 0:01:23]} 20. Bb2 {[%clk 0:02:00]}  Rd8 {[%clk 0:01:19]} 21. f4 {[%clk 0:01:53]}  e5 {[%clk 0:01:06]} 22. fxe5 {[%clk 0:01:51]}  Bxe5 {[%clk 0:01:01]} 23. Kg2 {[%clk 0:01:50]}  f6 {[%clk 0:01:00]} 24. a3 {[%clk 0:01:39]}  a5 {[%clk 0:00:31]} 25. Rd3 {[%clk 0:01:36]}  Kf7 {[%clk 0:00:31]} 26. Re1 {[%clk 0:01:26]}  h5 {[%clk 0:00:23]} 27. Kf3 {[%clk 0:01:25]}  Ke6 {[%clk 0:00:19]} 28. h3 {[%clk 0:01:22]}  f5 {[%clk 0:00:17]} 29. Bc1 {[%clk 0:01:17]}  Kf7 {[%clk 0:00:09]} 30. Bf4 {[%clk 0:01:16]}  Bf6 {[%clk 0:00:08]} 31. Bc7 {[%clk 0:01:08]}  Rd7 {[%clk 0:00:07]} 32. Bxb6 {[%clk 0:01:07]}  Ne5+ {[%clk 0:00:07]} 33. Rxe5 {[%clk 0:01:07]}  Bxe5 {[%clk 0:00:08]} 34. Bxa5 {[%clk 0:01:06]}  Ra7 {[%clk 0:00:07]} 35. b4 {[%clk 0:01:01]}  g5 {[%clk 0:00:06]} 36. g4 {[%clk 0:00:58]}  hxg4+ {[%clk 0:00:06]} 37. hxg4 {[%clk 0:00:58]}  Ke6 {[%clk 0:00:07]} 38. Bb6 {[%clk 0:00:56]}  Ra6 {[%clk 0:00:07]} 39. c5 {[%clk 0:00:54]}  Kd5 {[%clk 0:00:06]} 40. gxf5 {[%clk 0:00:52]}  Kc4 {[%clk 0:00:07]} 41. Ke4 {[%clk 0:00:52]}  Bf6 {[%clk 0:00:06]} 42. Bc7 {[%clk 0:00:48]}  Ra8 {[%clk 0:00:05]} 43. Rd1 {[%clk 0:00:45]}  Re8+ {[%clk 0:00:05]} 44. Kf3 {[%clk 0:00:45]}  d3 {[%clk 0:00:06]} 45. Bd6 {[%clk 0:00:41]}  Kc3 {[%clk 0:00:06]} 46. c6 {[%clk 0:00:41]}  Kc2 {[%clk 0:00:06]} 47. Rh1 {[%clk 0:00:41]}  d2 {[%clk 0:00:06]} 48. b5 {[%clk 0:00:41]}  Re1 {[%clk 0:00:06]} 49. c7 {[%clk 0:00:41]}  d1=Q+ {[%clk 0:00:06]} 50. Kg2 {[%clk 0:00:40]}  Qe2+ {[%clk 0:00:06]} 51. Kg3 {[%clk 0:00:39]}  Qd3+ {[%clk 0:00:06]} 52. Kg4 {[%clk 0:00:39]}  Qe2+ {[%clk 0:00:06]} 53. Kg3 {[%clk 0:00:39]}  Be5+ {[%clk 0:00:06]} 54. Bxe5 {[%clk 0:00:39]}  Qxe5+ {[%clk 0:00:07]} 55. Kg4 {[%clk 0:00:39]}  Qf4+ {[%clk 0:00:07]} 56. Kh5 {[%clk 0:00:39]}  Rxh1+ {[%clk 0:00:08]} 57. Kg6 {[%clk 0:00:39]}  Qxc7 {[%clk 0:00:08]} 0-1


[Site "https://www.chess.com"]

[Event "Titled Tuesday Blitz May 24 Late 2022"]
[White "Miszler, Levente"]
[Black "Milchev, Nikolay"]
[WhiteFideId "763276"]
[BlackFideId "2906090"]
[WhiteElo "1966"]
[BlackElo "2449"]
[Result "1-0"]
[Round "05"]
[TimeControl "180+1"]
[Date "2022.05.25"]
[WhiteClock "0:00:12"]
[BlackClock "0:01:35"]

1. Nf3 {[%clk 0:02:51]}  Nf6 {[%clk 0:03:00]} 2. c4 {[%clk 0:02:49]}  g6 {[%clk 0:02:59]} 3. g3 {[%clk 0:02:50]}  Bg7 {[%clk 0:03:00]} 4. Bg2 {[%clk 0:02:51]}  O-O {[%clk 0:03:01]} 5. O-O {[%clk 0:02:52]}  d6 {[%clk 0:03:01]} 6. Nc3 {[%clk 0:02:51]}  Nc6 {[%clk 0:03:02]} 7. d3 {[%clk 0:02:52]}  a6 {[%clk 0:03:02]} 8. Rb1 {[%clk 0:02:51]}  Rb8 {[%clk 0:03:02]} 9. b4 {[%clk 0:02:42]}  b5 {[%clk 0:03:02]} 10. cxb5 {[%clk 0:02:39]}  axb5 {[%clk 0:03:03]} 11. a4 {[%clk 0:02:26]}  bxa4 {[%clk 0:02:54]} 12. b5 {[%clk 0:02:26]}  Na5 {[%clk 0:02:49]} 13. Qxa4 {[%clk 0:02:24]}  Nb7 {[%clk 0:02:50]} 14. Qa7 {[%clk 0:02:14]}  Bd7 {[%clk 0:02:50]} 15. Nd4 {[%clk 0:02:12]}  Nc5 {[%clk 0:02:50]} 16. Nc6 {[%clk 0:02:06]}  Bxc6 {[%clk 0:02:50]} 17. Bxc6 {[%clk 0:02:07]}  Nfd7 {[%clk 0:02:43]} 18. Nd5 {[%clk 0:02:02]}  Rc8 {[%clk 0:02:42]} 19. Bg5 {[%clk 0:01:41]}  Nf6 {[%clk 0:02:34]} 20. d4 {[%clk 0:01:12]}  Nce4 {[%clk 0:02:18]} 21. Nxf6+ {[%clk 0:00:57]}  Nxf6 {[%clk 0:02:16]} 22. Rfc1 {[%clk 0:00:49]}  h6 {[%clk 0:02:15]} 23. Bd2 {[%clk 0:00:46]}  e6 {[%clk 0:02:14]} 24. Ba5 {[%clk 0:00:44]}  Qe7 {[%clk 0:02:07]} 25. b6 {[%clk 0:00:41]}  Ne8 {[%clk 0:01:53]} 26. b7 {[%clk 0:00:38]}  Rd8 {[%clk 0:01:46]} 27. b8=Q {[%clk 0:00:36]}  Rxb8 {[%clk 0:01:46]} 28. Rxb8 {[%clk 0:00:36]}  Nf6 {[%clk 0:01:47]} 29. Qxc7 {[%clk 0:00:26]}  Nd7 {[%clk 0:01:40]} 30. Rxf8+ {[%clk 0:00:24]}  Qxf8 {[%clk 0:01:41]} 31. Qxd7 {[%clk 0:00:24]}  Qb8 {[%clk 0:01:41]} 32. Qe8+ {[%clk 0:00:24]}  Qxe8 {[%clk 0:01:41]} 33. Bxe8 {[%clk 0:00:24]}  Bxd4 {[%clk 0:01:41]} 34. Rc7 {[%clk 0:00:22]}  f5 {[%clk 0:01:41]} 35. Bf7+ {[%clk 0:00:21]}  Kf8 {[%clk 0:01:41]} 36. Bxe6 {[%clk 0:00:20]}  Be5 {[%clk 0:01:38]} 37. Bb4 {[%clk 0:00:20]}  g5 {[%clk 0:01:36]} 38. e3 {[%clk 0:00:19]}  g4 {[%clk 0:01:36]} 39. Rd7 {[%clk 0:00:16]}  Ke8 {[%clk 0:01:35]} 40. Bxd6 {[%clk 0:00:16]}  Bf6 {[%clk 0:01:36]} 41. Bxf5 {[%clk 0:00:15]}  h5 {[%clk 0:01:36]} 42. Ra7 {[%clk 0:00:14]}  h4 {[%clk 0:01:36]} 43. Bg6+ {[%clk 0:00:13]}  Kd8 {[%clk 0:01:36]} 44. gxh4 {[%clk 0:00:13]}  Bxh4 {[%clk 0:01:36]} 45. Bf5 {[%clk 0:00:12]}  g3 {[%clk 0:01:35]} 46. Ra8# {[%clk 0:00:12]} 1-0


[Site "https://www.chess.com"]

[Event "Titled Tuesday Blitz May 24 Late 2022"]
[White "Moral Garcia, Serafin"]
[Black "Sapunov, Evgeny"]
[WhiteFideId "2201925"]
[BlackFideId "4126661"]
[WhiteElo "2228"]
[BlackElo "2470"]
[Result "0-1"]
[Round "05"]
[TimeControl "180+1"]
[Date "2022.05.25"]
[WhiteClock "0:00:17"]
[BlackClock "0:00:28"]

1. e4 {[%clk 0:03:00]}  c5 {[%clk 0:02:57]} 2. Nf3 {[%clk 0:03:00]}  d6 {[%clk 0:02:57]} 3. d4 {[%clk 0:03:00]}  cxd4 {[%clk 0:02:57]} 4. Nxd4 {[%clk 0:03:00]}  Nf6 {[%clk 0:02:58]} 5. Nc3 {[%clk 0:03:01]}  Nc6 {[%clk 0:02:58]} 6. Bg5 {[%clk 0:02:57]}  e6 {[%clk 0:02:59]} 7. Qd2 {[%clk 0:02:55]}  a6 {[%clk 0:02:59]} 8. O-O-O {[%clk 0:02:39]}  h6 {[%clk 0:02:58]} 9. Be3 {[%clk 0:02:37]}  Nxd4 {[%clk 0:02:57]} 10. Qxd4 {[%clk 0:02:34]}  Be7 {[%clk 0:02:53]} 11. f3 {[%clk 0:02:33]}  b5 {[%clk 0:02:50]} 12. Kb1 {[%clk 0:02:32]}  O-O {[%clk 0:02:45]} 13. g4 {[%clk 0:02:31]}  e5 {[%clk 0:02:44]} 14. Qd2 {[%clk 0:02:28]}  Be6 {[%clk 0:02:44]} 15. h4 {[%clk 0:02:27]}  b4 {[%clk 0:02:42]} 16. Nd5 {[%clk 0:02:21]}  Bxd5 {[%clk 0:02:42]} 17. exd5 {[%clk 0:02:22]}  a5 {[%clk 0:02:36]} 18. g5 {[%clk 0:02:19]}  Nh5 {[%clk 0:02:36]} 19. Bh3 {[%clk 0:02:15]}  g6 {[%clk 0:02:18]} 20. Bg4 {[%clk 0:02:13]}  Nf4 {[%clk 0:02:18]} 21. Bxf4 {[%clk 0:02:04]}  exf4 {[%clk 0:02:18]} 22. Qxf4 {[%clk 0:02:05]}  h5 {[%clk 0:02:17]} 23. Bh3 {[%clk 0:02:01]}  Re8 {[%clk 0:02:17]} 24. Rhe1 {[%clk 0:01:56]}  Bf8 {[%clk 0:02:17]} 25. Qd2 {[%clk 0:01:52]}  Bg7 {[%clk 0:02:03]} 26. f4 {[%clk 0:01:51]}  Qb6 {[%clk 0:01:55]} 27. f5 {[%clk 0:01:46]}  Bc3 {[%clk 0:01:30]} 28. Rxe8+ {[%clk 0:01:38]}  Rxe8 {[%clk 0:01:30]} 29. Qf4 {[%clk 0:01:36]}  Be5 {[%clk 0:01:17]} 30. Qe4 {[%clk 0:01:28]}  Kg7 {[%clk 0:01:04]} 31. Rf1 {[%clk 0:01:11]}  Qd4 {[%clk 0:00:55]} 32. f6+ {[%clk 0:01:05]}  Kf8 {[%clk 0:00:51]} 33. Qxd4 {[%clk 0:00:57]}  Bxd4 {[%clk 0:00:51]} 34. Kc1 {[%clk 0:00:43]}  Re4 {[%clk 0:00:47]} 35. b3 {[%clk 0:00:27]}  Bc3 {[%clk 0:00:41]} 36. Kd1 {[%clk 0:00:24]}  Rxh4 {[%clk 0:00:34]} 37. Bd7 {[%clk 0:00:23]}  Rh2 {[%clk 0:00:30]} 38. Rf3 {[%clk 0:00:21]}  Rd2+ {[%clk 0:00:30]} 39. Kc1 {[%clk 0:00:20]}  Rxd5 {[%clk 0:00:30]} 40. Rf2 {[%clk 0:00:18]}  Rxg5 {[%clk 0:00:29]} 41. Re2 {[%clk 0:00:18]}  Re5 {[%clk 0:00:28]} 42. Rf2 {[%clk 0:00:17]}  Re1# {[%clk 0:00:28]} 0-1


[Site "https://www.chess.com"]

[Event "Titled Tuesday Blitz May 24 Late 2022"]
[White "O`Gorman, Tom"]
[Black "Petrovic, Aleksa"]
[WhiteFideId "2508249"]
[BlackFideId "967629"]
[WhiteElo "2247"]
[BlackElo "2144"]
[Result "1-0"]
[Round "05"]
[TimeControl "180+1"]
[Date "2022.05.25"]
[WhiteClock "0:00:15"]
[BlackClock "0:00:06"]

1. c4 {[%clk 0:03:00]}  e6 {[%clk 0:02:55]} 2. d4 {[%clk 0:02:53]}  Nf6 {[%clk 0:02:52]} 3. Nc3 {[%clk 0:02:53]}  Bb4 {[%clk 0:02:51]} 4. f3 {[%clk 0:02:53]}  d5 {[%clk 0:02:48]} 5. a3 {[%clk 0:02:52]}  Bxc3+ {[%clk 0:02:48]} 6. bxc3 {[%clk 0:02:53]}  c5 {[%clk 0:02:46]} 7. cxd5 {[%clk 0:02:53]}  Nxd5 {[%clk 0:02:46]} 8. dxc5 {[%clk 0:02:51]}  Qa5 {[%clk 0:02:42]} 9. e4 {[%clk 0:02:47]}  Nf6 {[%clk 0:02:42]} 10. Be3 {[%clk 0:02:27]}  O-O {[%clk 0:02:31]} 11. Kf2 {[%clk 0:02:25]}  Nc6 {[%clk 0:02:24]} 12. Qb3 {[%clk 0:02:23]}  Ne5 {[%clk 0:01:43]} 13. Qb4 {[%clk 0:02:18]}  Qc7 {[%clk 0:01:35]} 14. Rd1 {[%clk 0:01:57]}  Bd7 {[%clk 0:01:19]} 15. Nh3 {[%clk 0:01:47]}  Rfc8 {[%clk 0:00:43]} 16. Be2 {[%clk 0:01:43]}  Be8 {[%clk 0:00:40]} 17. Rb1 {[%clk 0:01:02]}  Rab8 {[%clk 0:00:34]} 18. Rhd1 {[%clk 0:01:01]}  Ned7 {[%clk 0:00:26]} 19. Qd4 {[%clk 0:00:49]}  Qxc5 {[%clk 0:00:19]} 20. Rb5 {[%clk 0:00:39]}  Qxa3 {[%clk 0:00:18]} 21. Qxa7 {[%clk 0:00:36]}  Qxa7 {[%clk 0:00:17]} 22. Bxa7 {[%clk 0:00:36]}  Ra8 {[%clk 0:00:18]} 23. Rxb7 {[%clk 0:00:35]}  Rxc3 {[%clk 0:00:17]} 24. Bd4 {[%clk 0:00:33]}  Nc5 {[%clk 0:00:15]} 25. Bxc3 {[%clk 0:00:24]}  Nxb7 {[%clk 0:00:15]} 26. Nf4 {[%clk 0:00:25]}  Nd7 {[%clk 0:00:14]} 27. Nh5 {[%clk 0:00:23]}  f6 {[%clk 0:00:14]} 28. Nf4 {[%clk 0:00:23]}  Ndc5 {[%clk 0:00:13]} 29. Bc4 {[%clk 0:00:22]}  Kf7 {[%clk 0:00:13]} 30. Rb1 {[%clk 0:00:20]}  Ra4 {[%clk 0:00:13]} 31. Bxe6+ {[%clk 0:00:18]}  Nxe6 {[%clk 0:00:12]} 32. Rxb7+ {[%clk 0:00:17]}  Bd7 {[%clk 0:00:09]} 33. Rxd7+ {[%clk 0:00:17]}  Ke8 {[%clk 0:00:09]} 34. Nxe6 {[%clk 0:00:16]}  Ra2+ {[%clk 0:00:06]} 35. Rd2 {[%clk 0:00:15]} 1-0


[Site "https://www.chess.com"]